Workbook

Sheet 部门收支总表
A2: 2016年度部门收入支出决算总表
A4: 单位：临湘市人力资源和社会保障局 | B4: 系统合计 | N4: 单位：万元
A5: 收 入 | D5: 支 出
A6: 项 目 | B6: 金额 | D6: 项目（按功能分类） | F6: 项目（按经济分类）
D7: 科目编码（到项） | E7: 科 目 | F7: 工资福利支出 | G7: 商品和服务支出 | H7: 对个人和家庭的补助 | I7: 对企事业单位的补贴 | J7: 转移性支出 | K7: 债务利息支出 | L7: 基本建设支出 | M7: 其他资本性支出 | N7: 其他支出 | O7: 合计
A8: 一、公共财政拨款 | B8: 64,156.62
A9: 经费拨款 | B9: 64,019.80 | D9: 201 | E9: 一般公共服务支出 | G9: 190.02 | H9: 49.35 | M9: 1.71 | O9: =SUM(F9:N9) -> 241.08
A10: 纳入公共预算管理的非税收入拨款 | D10: 20110 | E10: 人力资源事务 | G10: 33.90 | O10: 33.90
A11: 二、政府性基金拨款 | B11: 136.82 | D11: 2011099 | E11: 其他人力资源事务支出 | G11: 33.90 | O11: 33.90
A12: 三、纳入专户管理的非税收入拨款 | D12: 20199 | E12: 其他一般公共服务支出 | G12: 156.12 | H12: 49.35 | M12: 1.71 | O12: 207.18
A13: 四、中央财政补助 | D13: 2019999 | E13: 其他一般公共服务支出 | G13: 156.12 | H13: 49.35 | M13: 1.71 | O13: 207.18
A14: 五、事业单位经营服务收入 | D14: 208 | E14: 社会保障和就业支出 | F14: 1297.30 | G14: 450.77 | H14: =H15+H19+H23+H26 -> 8486.54 | I14: =I15+I19+I23+I26 -> 29024.53 | L14: 0.56 | O14: 39259.70
A15: 六、其他收入 | D15: 20801 | E15: 人力资源和社会保障管理事务 | F15: 1297.30 | G15: 437.87 | H15: 330.04 | L15: 0.56 | O15: 2065.76
D16: 2080101 | E16: 行政运行 | F16: 417.60 | G16: 31.85 | O16: 449.45
D17: 2080109 | E17: 社会保险经办机构 | F17: 879.70 | G17: 315.42 | H17: 303.06 | L17: 0.56 | O17: 1498.74
D18: 2080199 | E18: 其他人力资源和社会保障管理事务支出 | G18: 90.59 | H18: 26.98 | O18: 117.57
D19: 20803 | E19: 财政对社会保险基金的补助 | H19: 6,321.00 | I19: =26297 -> 26,297.00 | O19: =SUM(H19:N19) -> 32618.00
D20: 2080301 | E20: 财政对基本养老保险基金的补助 | I20: 26,297.00 | O20: 26297.00
D21: 2080304 | E21: 财政对工伤保险基金的补助 | H21: 161.00 | O21: 161.00
D22: 2080308 | E22: 财政对城乡居民基本养老保险基金的补助 | H22: 6160 | O22: 6160.00
D23: 20805 | E23: 行政事业单位离退休 | H23: =H24+H25 -> 1,835.00 | O23: =SUM(F23:N23) -> 1835.00
D24: 2080501 | E24: 归口管理的行政单位离退休 | H24: 760 | O24: 760.00
D25: 2080502 | E25: 事业单位离退休 | H25: =40+1035 -> 1,075.00 | O25: 1075.00
D26: 20807 | E26: 就业补助 | G26: 12.9 | H26: 0.50 | I26: 2727.53 | O26: 2740.93
D27: 2080799 | E27: 其他就业补助支出 | H27: 0.50 | O27: 0.50
D28: 2080712 | E28: 高技能人才培养补助 | G28: 12.90 | O28: 12.9
D29: 2080799 | E29: 其他就业补助支出 | I29: 2727.53 | O29: 2727.53
D30: 210 | E30: 医疗保险 | F30: 95.05 | G30: 96.03 | H30: =20381.07+H36 -> 20400.92 | I30: 3833.32 | L30: 2.67 | O30: 24427.99
D31: 21005 | E31: 医疗保险 | H31: 20381.07 | I31: 3833.32 | O31: 24214.39
D32: 2100501 | E32: 行政单位医疗 | I32: 254.00 | O32: 254
D33: 2100502 | E33: 事业单位医疗 | I33: 79.43 | O33: 79.43
D34: 2100508 | E34: 城镇居民医疗 | I34: 3499.89 | O34: 3499.89
D35: 2100506 | E35: 新型农村合作医疗 | H35: 20381.07 | O35: 20381.07
D36: 21001 | E36: 医疗卫生与计划生育管理事务 | F36: 95.05 | G36: 96.03 | H36: 19.85 | L36: 2.67 | O36: 213.6
D37: 2100101 | E37: 行政运行 | F37: 95.05 | G37: 88.03 | H37: 19.85 | L37: 2.67 | O37: 205.6
D38: 2100199 | E38: 其他医疗卫生与计划生育管理事务支出 | G38: 8 | O38: 8
D39: 213 | E39: 农林水支出 | H39: 91 | O39: =SUM(H39:N39) -> 91
D40: 21307 | E40: 农村综合改革 | H40: 91 | O40: 91
D41: 2130705 | E41: 对村民委员会和村党支部的补助 | H41: 91 | O41: 91
D42: 229 | E42: 其他支出 | G42: 15 | H42: 7.92 | I42: =113.9 -> 113.9 | O42: =SUM(G42:N42) -> 136.82
D43: 22904 | E43: 其他政府性基金及对应专项债务收入安排的支出 | G43: 15 | H43: 7.92 | I43: 113.9 | O43: 136.82
D44: 2290400 | E44: 其他政府性基金及对应专项债务收入安排的支出 | G44: 15 | H44: 7.92 | I44: 113.9 | O44: 136.82
A46: 本 年 收 入 合 计 | B46: =SUM(B9:B45) -> 64156.62 | O46: 64156.62

Sheet 财政拨款收入支出表
A1: 2016 年度部门财政拨款收入支出决算总表
A3: 单位：临湘市人力资源和社会保障局系统合计 | N3: 单位：万元
A4: 收 入 | D4: 支 出
A5: 项 目 | B5: 金额 | D5: 项目（按功能分类） | F5: 项目（按经济分类）
D6: 科目编码（到项） | E6: 科 目 | F6: 工资福利支出 | G6: 商品和服务支出 | H6: 对个人和家庭的补助 | I6: 对企事业单位的补贴 | J6: 转移性支出 | K6: 债务利息支出 | L6: 基本建设支出 | M6: 其他资本性支出 | N6: 其他支出 | O6: 合计
A7: 公共财政拨款 | B7: 64156.62
A8: 其中：1、经费拨款 | B8: =B7 -> 64,156.62 | D8: 201 | E8: 一般公共服务支出 | G8: 190.02 | H8: 49.35 | M8: 1.71 | O8: =SUM(F8:N8) -> 241.08
A9: 2、纳入公共预算管理的非税收入拨款 | D9: 20110 | E9: 人力资源事务 | G9: 33.90 | O9: 33.90
D10: 2011099 | E10: 其他人力资源事务支出 | G10: 33.90 | O10: 33.90
D11: 20199 | E11: 其他一般公共服务支出 | G11: 156.12 | H11: 49.35 | M11: 1.71 | O11: 207.18
D12: 2019999 | E12: 其他一般公共服务支出 | G12: 156.12 | H12: 49.35 | M12: 1.71 | O12: 207.18
D13: 208 | E13: 社会保障和就业支出 | F13: 1297.30 | G13: 450.77 | H13: =H14+H18+H22+H25 -> 8486.54 | I13: =I14+I18+I22+I25 -> 29024.53 | L13: 0.56 | O13: 39259.70
D14: 20801 | E14: 人力资源和社会保障管理事务 | F14: 1297.30 | G14: 437.87 | H14: 330.04 | L14: 0.56 | O14: 2065.76
D15: 2080101 | E15: 行政运行 | F15: 417.60 | G15: 31.85 | O15: 449.45
D16: 2080109 | E16: 社会保险经办机构 | F16: 879.70 | G16: 315.42 | H16: 303.06 | L16: 0.56 | O16: 1498.74
D17: 2080199 | E17: 其他人力资源和社会保障管理事务支出 | G17: 90.59 | H17: 26.98 | O17: 117.57
D18: 20803 | E18: 财政对社会保险基金的补助 | H18: 6,321.00 | I18: =26297 -> 26,297.00 | O18: =SUM(H18:N18) -> 32618.00
D19: 2080301 | E19: 财政对基本养老保险基金的补助 | I19: 26,297.00 | O19: 26297.00
D20: 2080304 | E20: 财政对工伤保险基金的补助 | H20: 161.00 | O20: 161.00
D21: 2080308 | E21: 财政对城乡居民基本养老保险基金的补助 | H21: 6160 | O21: 6160.00
D22: 20805 | E22: 行政事业单位离退休 | H22: =H23+H24 -> 1,835.00 | O22: =SUM(F22:N22) -> 1835.00
D23: 2080501 | E23: 归口管理的行政单位离退休 | H23: 760 | O23: 760.00
D24: 2080502 | E24: 事业单位离退休 | H24: =40+1035 -> 1,075.00 | O24: 1075.00
D25: 20807 | E25: 就业补助 | G25: 12.9 | H25: 0.50 | I25: 2727.53 | O25: 2740.93
D26: 2080799 | E26: 其他就业补助支出 | H26: 0.50 | O26: 0.50
D27: 2080712 | E27: 高技能人才培养补助 | G27: 12.90 | O27: 12.9
D28: 2080799 | E28: 其他就业补助支出 | I28: 2727.53 | O28: 2727.53
D29: 210 | E29: 医疗保险 | F29: 95.05 | G29: 96.03 | H29: =20381.07+H35 -> 20400.92 | I29: 3833.32 | L29: 2.67 | O29: 24427.99
D30: 21005 | E30: 医疗保险 | H30: 20381.07 | I30: 3833.32 | O30: 24214.39
D31: 2100501 | E31: 行政单位医疗 | I31: 254.00 | O31: 254
D32: 2100502 | E32: 事业单位医疗 | I32: 79.43 | O32: 79.43
D33: 2100508 | E33: 城镇居民医疗 | I33: 3499.89 | O33: 3499.89
D34: 2100506 | E34: 新型农村合作医疗 | H34: 20381.07 | O34: 20381.07
D35: 21001 | E35: 医疗卫生与计划生育管理事务 | F35: 95.05 | G35: 96.03 | H35: 19.85 | L35: 2.67 | O35: 213.6
D36: 2100101 | E36: 行政运行 | F36: 95.05 | G36: 88.03 | H36: 19.85 | L36: 2.67 | O36: 205.6
D37: 2100199 | E37: 其他医疗卫生与计划生育管理事务支出 | G37: 8 | O37: 8
D38: 213 | E38: 农林水支出 | H38: 91 | O38: =SUM(H38:N38) -> 91
D39: 21307 | E39: 农村综合改革 | H39: 91 | O39: 91
D40: 2130705 | E40: 对村民委员会和村党支部的补助 | H40: 91 | O40: 91
D41: 229 | E41: 其他支出 | G41: 15 | H41: 7.92 | I41: =113.9 -> 113.9 | O41: =SUM(G41:N41) -> 136.82
D42: 22904 | E42: 其他政府性基金及对应专项债务收入安排的支出 | G42: 15 | H42: 7.92 | I42: 113.9 | O42: 136.82
D43: 2290400 | E43: 其他政府性基金及对应专项债务收入安排的支出 | G43: 15 | H43: 7.92 | I43: 113.9 | O43: 136.82
O45: 64156.62

Sheet 公共预算支出表
A1: 2016 年度部门一般公共预算财政拨款支出决算表
A2: 单位：临湘市人社会局系统合计 | E2: 单位：万元
A3: 科目编码 | B3: 科目名称 | C3: 合 计 | D3: 基本支出 | E3: 项目支出
A4: 合计 | C4: 64156.62 | D4: 64156.62
A5: 201 | B5: 一般公共服务支出 | C5: 241.08 | D5: 241.08
A6: 20110 | B6: 人力资源事务 | C6: 33.9 | D6: 33.9
A7: 2011099 | B7: 其他人力资源事务支出 | C7: 33.9 | D7: 33.9
A8: 20199 | B8: 其他一般公共服务支出 | C8: 207.175 | D8: 207.175
A9: 2019999 | B9: 其他一般公共服务支出 | C9: 207.175 | D9: 207.175
A10: 208 | B10: 社会保障和就业支出 | C10: 39259.70 | D10: 39259.70
A11: 20801 | B11: 人力资源和社会保障管理事务 | C11: 2065.76 | D11: 2065.76
A12: 2080101 | B12: 行政运行 | C12: 449.45 | D12: 449.45
A13: 2080109 | B13: 社会保险经办机构 | C13: 1498.74 | D13: 1498.74
A14: 2080199 | B14: 其他人力资源和社会保障管理事务支出 | C14: 117.57 | D14: 117.57
A15: 20803 | B15: 财政对社会保险基金的补助 | C15: 32618.00 | D15: 32618.00
A16: 2080301 | B16: 财政对基本养老保险基金的补助 | C16: 26297.00 | D16: 26297.00
A17: 2080304 | B17: 财政对工伤保险基金的补助 | C17: 161.00 | D17: 161.00
A18: 2080308 | B18: 财政对城乡居民基本养老保险基金的补助 | C18: 6160.00 | D18: 6160.00
A19: 20805 | B19: 行政事业单位离退休 | C19: 1835.00 | D19: 1835.00
A20: 2080501 | B20: 归口管理的行政单位离退休 | C20: 760.00 | D20: 760.00
A21: 2080502 | B21: 事业单位离退休 | C21: 1075.00 | D21: 1075.00
A22: 20807 | B22: 就业补助 | C22: 2740.93 | D22: 2740.93
A23: 2080799 | B23: 其他就业补助支出 | C23: 0.50 | D23: 0.50
A24: 2080712 | B24: 高技能人才培养补助 | C24: 12.90 | D24: 12.90
A25: 2080799 | B25: 其他就业补助支出 | C25: 2727.53 | D25: 2727.53
A26: 210 | B26: 医疗保险 | C26: 24427.99 | D26: 24427.99
A27: 21005 | B27: 医疗保险 | C27: 24214.39 | D27: 24214.39
A28: 2100501 | B28: 行政单位医疗 | C28: 254 | D28: 254
A29: 2100502 | B29: 事业单位医疗 | C29: 79.43 | D29: 79.43
A30: 2100508 | B30: 城镇居民医疗 | C30: 3499.888 | D30: 3499.888
A31: 2100506 | B31: 新型农村合作医疗 | C31: 20381.07 | D31: 20381.07
A32: 21001 | B32: 医疗卫生与计划生育管理事务 | C32: 213.6 | D32: 213.6
A33: 2100101 | B33: 行政运行 | C33: 205.6 | D33: 205.6
A34: 2100199 | B34: 其他医疗卫生与计划生育管理事务支出 | C34: 8 | D34: 8
A35: 213 | B35: 农林水支出 | C35: 91 | D35: 91
A36: 21307 | B36: 农村综合改革 | C36: 91 | D36: 91
A37: 2130705 | B37: 对村民委员会和村党支部的补助 | C37: 91 | D37: 91
A38: 229 | B38: 其他支出 | C38: 136.82 | D38: 136.82
A39: 22904 | B39: 其他政府性基金及对应专项债务收入安排的支出 | C39: 136.82 | D39: 136.82
A40: 2290400 | B40: 其他政府性基金及对应专项债务收入安排的支出 | C40: 136.82 | D40: 136.82
A41: 说明：数据公开到支出功能分类项级科目。

Sheet 公共预算基本支出表
A1: 2016 年度部门一般公共预算财政拨款基本支出决算表
A2: 单位：临湘市人社会局系统 | C2: 单位：万元
A3: 科目编码 | B3: 科目名称 | C3: 决算数
B4: 合计 | C4: 64,156.62
A5: 301 | B5: 工资福利支出 | C5: 1,392.34
A6: 30101 | B6: 基本工资 | C6: 702.82
A7: 30102 | B7: 津贴 | C7: 432.23
A8: 30103 | B8: 奖金 | C8: 28.76
A9: 30104 | B9: 社会保障缴费 | C9: 200.77
A10: 30105 | B10: 生活补助 | C10: 0.50
A11: 30106 | B11: 伙食补助费 | C11: 7.01
A12: 30199 | B12: 其他工资福利支出 | C12: 20.25
A13: 302 | B13: 商品和服务支出 | C13: =753.47+5.27 -> 758.74
A14: 30201 | B14: 办公费 | C14: 103.44
A15: 30202 | B15: 印刷费 | C15: 83.87
A16: 30204 | B16: 手续费 | C16: 10.23
A17: 30206 | B17: 电费 | C17: =31.49+5.27 -> 36.76
A18: 30207 | B18: 邮电费 | C18: 11.48
A19: 30208 | B19: 取暖费 | C19: 5.62
A20: 30211 | B20: 差旅费 | C20: 13.83
A21: 30213 | B21: 维修（护）费 | C21: 66.83
A22: 30215 | B22: 租赁费 | C22: 0.67
A23: 30215 | B23: 会议费 | C23: 7.06
A24: 30216 | B24: 培训费 | C24: 30.81
A25: 30217 | B25: 公务接待费 | C25: 85.36
A26: 30218 | B26: 专业材料费 | C26: 4.99
A27: 30226 | B27: 劳务费 | C27: 9.31
A28: 30228 | B28: 工会经费 | C28: 75.99
A29: 30229 | B29: 福利费 | C29: 38.31
A30: 30231 | B30: 公务用车运行维护费 | C30: 14.49
A31: 30239 | B31: 其他交通费用 | C31: 4.71
A32: 30299 | B32: 其他商品和服务支出 | C32: 154.98
A33: 303 | B33: 对个人和家庭的补助 | C33: 59158.17
A34: 30301 | B34: 离休费 | C34: 75.24
A35: 30302 | B35: 退休费 | C35: 28016.76
A36: 30304 | B36: 抚恤金 | C36: 0.50
A37: 30305 | B37: 生活补助 | C37: 6404.16
A38: 30307 | B38: 医疗费 | C38: 24375.40
A39: 30311 | B39: 住房公积金 | C39: 175.46
A40: 30399 | B40: 其他对个人和家庭的补助支出 | C40: 110.65
A41: 304 | B41: 对企事业单位的补贴 | C41: 2841.43
A42: 30401 | B42: 事业单位的补贴 | C42: 1613.90
A43: 30402 | B43: 事业单位补贴 | C43: 1146.53
A44: 30499 | B44: 其他对企事业单位补贴 | C44: 81.00
A45: 310 | B45: 其他资本性支出 | C45: 5.94
A46: 31002 | B46: 办公设备购置 | C46: 5.94
A49: 说明：1、本表的公开内容为列省级支出的当年一般公共预算拨款安排情况（不含上年结转）；
A50: 2、一般公共预算拨款包括经费拨款和纳入一般公共预算管理的非税收入拨款。

Sheet 政府性基金决算支出表
A1: 2016年度部门政府性基金财政拨款收入支出决算总表
A3: 单位：临湘市人社会局系统 | N3: 单位：万元
A4: 收 入 | D4: 支 出
A5: 基金收入科目 | B5: 金额 | D5: 项目（按功能分类） | F5: 项目（按经济分类）
D6: 科目编码（到项） | E6: 科 目 | F6: 工资福利支出 | G6: 商品和服务支出 | H6: 对个人和家庭的补助 | I6: 对企事业单位的补贴 | J6: 转移性支出 | K6: 债务利息支出 | L6: 基本建设支出 | M6: 其他资本性支出 | N6: 其他支出 | O6: 合计
A7: 一、非税收入 | B7: 136.82 | D7: 229 | E7: 其他支出 | G7: 15 | H7: 7.92 | I7: =113.9 -> 113.9 | O7: =SUM(G7:N7) -> 136.82
A8: 二、债务收入 | D8: 22904 | E8: 其他政府性基金及对应专项债务收入安排的支出 | G8: 15 | H8: 7.92 | I8: 113.9 | O8: 136.82
A9: 三、转移性收入 | D9: 2290400 | E9: 其他政府性基金及对应专项债务收入安排的支出 | G9: 15 | H9: 7.92 | I9: 113.9 | O9: 136.82

Sheet 三公经费决算公开
A2: 2016年度部门一般公共预算财政拨款“三公”经费支出决算表
A3: 单位：临湘市人社会局系统 | K3: 单位：万元
A4: 单位名称 | B4: 三公经费决算数（一般公共预算拨款） | M4: 2015年三公经费数 | N4: 三公经费增减变化原因
B5: 小计 | C5: 公务接待费 | F5: 公务用车购置及运行费 | G5: 其中： | J5: 因公出国（境）费
C6: 批次 | D6: 人数 | E6: 金额 | G6: 现有车辆数 | H6: 公务用车购置费 | I6: 公务用车运行维护费 | J6: 组团数 | K6: 人数 | L6: 金额
A7: 临湘市人力资源和社会保障局 | B7: 14.62 | C7: 155.00 | D7: 1,680.00 | E7: 13.39 | F7: 1.23 | G7: 1.00 | I7: 1.23 | M7: 30.6 | N7: 小车减少1辆，接待费加强管理严控标准
A8: 临湘市就业服务局 | B8: 13.00 | C8: 157 | D8: 1,648 | E8: 11.00 | F8: 2.00 | G8: 1.00 | I8: 2.00 | M8: 22 | N8: 加强管理
A9: 临湘市社保所 | B9: 23.64 | C9: 221.00 | D9: 2,873.00 | E9: 22.06 | F9: 1.58 | G9: 1.00 | I9: 1.58 | M9: 26.6 | N9: 节约开支
A10: 临湘医保中心 | B10: 13.32 | C10: 168.00 | D10: 1,550.00 | E10: 12.17 | F10: 1.14 | G10: 1.00 | I10: 1.14 | M10: 5.3 | N10: 一、今年支付了上年部分招待费。二、居民与农合合并检查力度加大。
A11: 临湘市工伤保险中心 | B11: 0.78 | C11: 9 | D11: 98 | E11: 0.78 | F11: 0.00 | G11: 0.00 | H11: 0.00 | I11: 0.00 | M11: 1.3 | N11: 按政策减少开支
A12: 临湘城乡居民养老保险管理服务中心 | B12: 12.40 | C12: 90.00 | D12: 1,253.00 | E12: 10.00 | F12: 2.40 | G12: 1.00 | I12: 2.40 | M12: 14.8 | N12: 公务接待减少和公务用车减少
A13: 机关事业养老保险所 | B13: 9.03 | C13: 180 | D13: 1157 | E13: 9.03 | N13: 新单位2016年财务独立
A14: 临湘市农合办 | B14: =E14+F14 -> 13.04 | C14: 55.00 | D14: 895.00 | E14: 6.92 | F14: 6.12 | G14: 1.00 | H14: 0.00 | I14: 6.12 | M14: 10.13 | N14: 较上年有所提高，1、因为单位合并，联系频繁；交流讨论,学习联系增多；2、参合筹资个人缴费提高，下乡宣传力度加强
B17: =SUM(B7:B16) -> 99.83 | C17: 1,035.00 | D17: 11,154.00 | E17: 85.35 | F17: 14.47 | G17: 6.00 | H17: 0.00 | I17: 14.47 | M17: =SUM(M7:M16) -> 110.73
A18: 说明： 1、本表公开内容为列省级支出的“三公”经费预算一般公共预算拨款安排情况；
A19: 2、一般公共预算拨款包括经费拨款和纳入一般公共预算管理的非税收入拨款；
A20: 3、公开口径为当年安排数（不含上年结转）。
